[Event "*** Titled Tuesday 3|2 Blitz"]
[Site "Chess.com"]
[Date "2016.01.05"]
[Round "9"]
[White "gumersindo"]
[Black "BjarkeSahl"]
[Result "0-1"]
[WhiteElo "2270"]
[BlackElo "2125"]
[TimeControl "180+2"]
[EndTime "12:54:49 PST"]
[Termination "BjarkeSahl won by resignation"]

1. d4 {[%clk 0:03:01.9]} 1... f5 {[%clk 0:02:43.4]} 2. g3 {[%clk 0:03:01.7]}
2... Nf6 {[%clk 0:02:43.2]} 3. Bg2 {[%clk 0:03:03.2]} 3... g6 {[%clk 0:02:45.1]}
4. Nf3 {[%clk 0:03:03.9]} 4... Bg7 {[%clk 0:02:46.5]} 5. c4 {[%clk 0:03:05.5]}
5... O-O {[%clk 0:02:48.1]} 6. Nc3 {[%clk 0:03:07.1]} 6... d6 {[%clk 0:02:49.7]}
7. O-O {[%clk 0:03:06.7]} 7... Qe8 {[%clk 0:02:46.1]} 8. d5 {[%clk 0:03:07.5]}
8... c6 {[%clk 0:02:43.2]} 9. Re1 {[%clk 0:03:00.5]} 9... Na6 {[%clk 0:02:36.1]}
10. Be3 {[%clk 0:03:00.2]} 10... Ng4 {[%clk 0:02:20.4]} 11. Bd4 {[%clk
0:03:00.1]} 11... Ne5 {[%clk 0:02:20.6]} 12. dxc6 {[%clk 0:02:39.7]} 12... bxc6
{[%clk 0:02:01.7]} 13. b3 {[%clk 0:02:38.9]} 13... Nxf3+ {[%clk 0:01:47.6]} 14.
Bxf3 {[%clk 0:02:37.1]} 14... e5 {[%clk 0:01:48.2]} 15. Be3 {[%clk 0:02:15.2]}
15... e4 {[%clk 0:01:42.8]} 16. Bd4 {[%clk 0:02:17.1]} 16... exf3 {[%clk
0:01:42.3]} 17. exf3 {[%clk 0:02:17.2]} 17... Qf7 {[%clk 0:01:29.8]} 18. Bxg7
{[%clk 0:02:12.5]} 18... Qxg7 {[%clk 0:01:28.7]} 19. Na4 {[%clk 0:02:10.5]}
19... Qf6 {[%clk 0:01:22.6]} 20. Rc1 {[%clk 0:02:08.2]} 20... Bd7 {[%clk
0:01:19.2]} 21. Qd2 {[%clk 0:02:07.7]} 21... Rae8 {[%clk 0:01:16.2]} 22. Red1
{[%clk 0:02:07.9]} 22... Re6 {[%clk 0:01:14.6]} 23. c5 {[%clk 0:02:05.8]} 23...
d5 {[%clk 0:01:14.1]} 24. Qa5 {[%clk 0:02:05.8]} 24... Bc8 {[%clk 0:01:12.2]}
25. b4 {[%clk 0:02:02.9]} 25... Qd8 {[%clk 0:01:12.2]} 26. Qxd8 {[%clk
0:02:00.9]} 26... Rxd8 {[%clk 0:01:12.9]} 27. a3 {[%clk 0:02:01.2]} 27... Nc7
{[%clk 0:01:12.6]} 28. Nc3 {[%clk 0:02:00.4]} 28... Ba6 {[%clk 0:01:12.9]} 29.
Rd4 {[%clk 0:01:57]} 29... Bc4 {[%clk 0:01:11.7]} 30. Kg2 {[%clk 0:01:55.1]}
30... Nb5 {[%clk 0:01:09.7]} 31. Nxb5 {[%clk 0:01:55.7]} 31... cxb5 {[%clk
0:01:10.8]} 32. h4 {[%clk 0:01:54.2]} 32... Rde8 {[%clk 0:01:11.6]} 33. h5
{[%clk 0:01:52.1]} 33... Kf7 {[%clk 0:01:09.6]} 34. hxg6+ {[%clk 0:01:52.8]}
34... hxg6 {[%clk 0:01:10.6]} 35. Rh1 {[%clk 0:01:54.3]} 35... Kg7 {[%clk
0:01:12.1]} 36. Rdh4 {[%clk 0:01:53.9]} 36... Ra6 {[%clk 0:01:04.3]} 37. Rh7+
{[%clk 0:01:52.6]} 37... Kf6 {[%clk 0:01:05.8]} 38. Ra1 {[%clk 0:01:49.6]} 38...
Re7 {[%clk 0:01:02.7]} 39. Rh8 {[%clk 0:01:50.3]} 39... d4 {[%clk 0:01:02.7]}
40. Rd8 {[%clk 0:01:50]} 40... d3 {[%clk 0:01:03.1]} 41. f4 {[%clk 0:01:39.7]}
41... Kf7 {[%clk 0:00:50.2]} 42. Rh1 {[%clk 0:01:35.2]} 42... Rxa3 {[%clk
0:00:40.7]} 43. Rh7+ {[%clk 0:01:33.8]} 43... Kf6 {[%clk 0:00:42.1]} 44. Rhh8
{[%clk 0:01:30.4]} 44... Ra2 {[%clk 0:00:37.1]} 45. c6 {[%clk 0:01:24.8]} 45...
Rc2 {[%clk 0:00:33.6]} 46. Rhf8+ {[%clk 0:01:17.3]} 46... Bf7 {[%clk 0:00:32.5]}
47. Rxd3 {[%clk 0:01:12.3]} 47... Rxc6 {[%clk 0:00:32.5]} 48. f3 {[%clk
0:01:11]} 48... Rce6 {[%clk 0:00:24.6]} 49. g4 {[%clk 0:01:11.5]} 49... Re8
{[%clk 0:00:23.9]} 50. g5+ {[%clk 0:01:01.4]} 50... Kg7 {[%clk 0:00:21.6]} 51.
Rxe8 {[%clk 0:01:02.8]} 51... Bxe8 {[%clk 0:00:20.9]} 52. Rd5 {[%clk 0:01:03]}
52... Kf7 {[%clk 0:00:20.3]} 53. Rc5 {[%clk 0:01:04]} 53... Ke7 {[%clk
0:00:21.3]} 54. Rc7+ {[%clk 0:01:04.5]} 54... Bd7 {[%clk 0:00:22.6]} 55. Rxa7
{[%clk 0:01:05.8]} 55... Re2+ {[%clk 0:00:23.3]} 56. Kg3 {[%clk 0:01:06.9]}
56... Rb2 {[%clk 0:00:22.7]} 57. Ra6 {[%clk 0:01:07.7]} 57... Be8 {[%clk
0:00:23.5]} 58. Ra7+ {[%clk 0:01:08.6]} 58... Kf8 {[%clk 0:00:25.1]} 59. Rb7
{[%clk 0:01:01.9]} 59... Rxb4 {[%clk 0:00:26.3]} 60. Rb8 {[%clk 0:01:01.1]}
60... Rb2 {[%clk 0:00:24.9]} 0-1

[Event "*** Titled Tuesday 3|2 Blitz"]
[Site "Chess.com"]
[Date "2016.01.05"]
[Round "9"]
[White "AndrewMcStone"]
[Black "bugsbunny444"]
[Result "1-0"]
[WhiteElo "1994"]
[BlackElo "2324"]
[TimeControl "180+2"]
[EndTime "12:55:03 PST"]
[Termination "AndrewMcStone won by resignation"]

1. d4 {[%clk 0:03:01.9]} 1... e6 {[%clk 0:03:00.9]} 2. c4 {[%clk 0:03:02.7]}
2... b6 {[%clk 0:03:02.4]} 3. Nc3 {[%clk 0:02:49.7]} 3... Bb7 {[%clk 0:03:03.9]}
4. f3 {[%clk 0:02:43.8]} 4... Bb4 {[%clk 0:02:58.7]} 5. Nh3 {[%clk 0:02:35]}
5... f5 {[%clk 0:02:49.4]} 6. Bg5 {[%clk 0:02:35.5]} 6... Nf6 {[%clk 0:02:47.8]}
7. e3 {[%clk 0:02:33.3]} 7... O-O {[%clk 0:02:41.1]} 8. Bd3 {[%clk 0:02:33.5]}
8... Qe7 {[%clk 0:02:10.3]} 9. Qc2 {[%clk 0:02:08.1]} 9... c5 {[%clk 0:02:00.7]}
10. a3 {[%clk 0:02:02.4]} 10... Ba5 {[%clk 0:01:58.4]} 11. O-O {[%clk
0:01:53.3]} 11... Nc6 {[%clk 0:01:54.9]} 12. dxc5 {[%clk 0:01:24]} 12... bxc5
{[%clk 0:01:54.6]} 13. Rad1 {[%clk 0:01:19.7]} 13... Ne5 {[%clk 0:01:46.2]} 14.
Rf2 {[%clk 0:00:52.4]} 14... Bc6 {[%clk 0:01:23.2]} 15. Rfd2 {[%clk 0:00:32.5]}
15... Rab8 {[%clk 0:01:21.3]} 16. Bf1 {[%clk 0:00:30.9]} 16... Rb7 {[%clk
0:01:18.1]} 17. Rd6 {[%clk 0:00:22.5]} 17... Rfb8 {[%clk 0:01:05.5]} 18. Nb5
{[%clk 0:00:17.9]} 18... a6 {[%clk 0:01:05.3]} 19. Qa4 {[%clk 0:00:11.1]} 19...
Qd8 {[%clk 0:00:37.6]} 20. Rxe6 {[%clk 0:00:11.6]} 20... Bxb5 {[%clk 0:00:02.8]}
21. cxb5 {[%clk 0:00:13.5]} 21... axb5 {[%clk 0:00:04.3]} 22. Qc2 {[%clk
0:00:12.2]} 22... dxe6 {[%clk 0:00:03.8]} 23. Rxd8+ {[%clk 0:00:12.4]} 23...
Rxd8 {[%clk 0:00:05.7]} 24. Bf4 {[%clk 0:00:13.3]} 24... Ned7 {[%clk 0:00:05.4]}
25. Nf2 {[%clk 0:00:12.9]} 25... g6 {[%clk 0:00:04.2]} 26. Nd3 {[%clk
0:00:13.7]} 26... c4 {[%clk 0:00:05.2]} 27. Ne5 {[%clk 0:00:14.5]} 27... Nd5
{[%clk 0:00:05.9]} 28. Nc6 {[%clk 0:00:14.1]} 28... Ra8 {[%clk 0:00:05.5]} 29.
Nxa5 {[%clk 0:00:14.4]} 29... Rxa5 {[%clk 0:00:06.6]} 30. Bd6 {[%clk 0:00:15.3]}
30... Ra6 {[%clk 0:00:04.4]} 31. Bf4 {[%clk 0:00:13.4]} 31... Kg7 {[%clk
0:00:03.3]} 32. Qd2 {[%clk 0:00:14.1]} 32... N7f6 {[%clk 0:00:03]} 33. Be5
{[%clk 0:00:15]} 33... Kf7 {[%clk 0:00:03.5]} 34. e4 {[%clk 0:00:16.3]} 34...
fxe4 {[%clk 0:00:03]} 35. fxe4 {[%clk 0:00:17.5]} 35... Nxe4 {[%clk 0:00:04.5]}
36. Qd1 {[%clk 0:00:18.2]} 36... Nef6 {[%clk 0:00:03.8]} 37. Qf3 {[%clk
0:00:19.1]} 37... Rd7 {[%clk 0:00:04.7]} 38. g4 {[%clk 0:00:19.9]} 38... g5
{[%clk 0:00:05.3]} 39. h4 {[%clk 0:00:20.5]} 39... h6 {[%clk 0:00:06.8]} 40.
hxg5 {[%clk 0:00:21.8]} 40... hxg5 {[%clk 0:00:08.7]} 41. Qh3 {[%clk 0:00:23]}
41... Ra8 {[%clk 0:00:07.5]} 42. Qh6 {[%clk 0:00:22.3]} 42... Rg8 {[%clk
0:00:08.4]} 43. Bg2 {[%clk 0:00:22]} 43... Rg6 {[%clk 0:00:06.7]} 44. Qh8 {[%clk
0:00:22.3]} 44... Ng8 {[%clk 0:00:05.6]} 45. Be4 {[%clk 0:00:21.5]} 45... Rh6
{[%clk 0:00:05.3]} 46. Qg7+ {[%clk 0:00:17.3]} 46... Ke8 {[%clk 0:00:05.4]} 47.
Qxg8+ {[%clk 0:00:18.3]} 47... Ke7 {[%clk 0:00:06.8]} 48. Qxg5+ {[%clk
0:00:19.4]} 1-0

[Event "*** Titled Tuesday 3|2 Blitz"]
[Site "Chess.com"]
[Date "2016.01.05"]
[Round "9"]
[White "ZEN-22"]
[Black "Cats4Sale"]
[Result "0-1"]
[WhiteElo "2378"]
[BlackElo "2293"]
[TimeControl "180+2"]
[EndTime "12:55:20 PST"]
[Termination "Cats4Sale won by checkmate"]

1. e3 {[%clk 0:03:00.9]} 1... e5 {[%clk 0:02:56.6]} 2. Ne2 {[%clk 0:03:02.5]}
2... d5 {[%clk 0:02:56.1]} 3. d4 {[%clk 0:03:04.4]} 3... Nc6 {[%clk 0:02:56.2]}
4. dxe5 {[%clk 0:03:05.2]} 4... Nxe5 {[%clk 0:02:56.8]} 5. Nd2 {[%clk
0:03:07.1]} 5... Nf6 {[%clk 0:02:57.2]} 6. Nf3 {[%clk 0:03:07.3]} 6... Nxf3+
{[%clk 0:02:57.4]} 7. gxf3 {[%clk 0:03:09.2]} 7... g6 {[%clk 0:02:50.7]} 8. Bg2
{[%clk 0:03:07.9]} 8... Bg7 {[%clk 0:02:51.2]} 9. c4 {[%clk 0:03:08.4]} 9... O-O
{[%clk 0:02:42.9]} 10. cxd5 {[%clk 0:03:07.4]} 10... Nxd5 {[%clk 0:02:37.4]} 11.
h4 {[%clk 0:03:05.4]} 11... Be6 {[%clk 0:02:32.1]} 12. a3 {[%clk 0:03:05.8]}
12... c6 {[%clk 0:02:05]} 13. h5 {[%clk 0:03:05.9]} 13... Qb6 {[%clk 0:02:04.5]}
14. hxg6 {[%clk 0:03:05.3]} 14... fxg6 {[%clk 0:02:04.2]} 15. Nd4 {[%clk
0:03:05]} 15... Bxd4 {[%clk 0:01:59.7]} 16. Qxd4 {[%clk 0:03:02.2]} 16... Qxd4
{[%clk 0:01:59.8]} 17. exd4 {[%clk 0:03:04.1]} 17... Nf4 {[%clk 0:01:54.9]} 18.
Bf1 {[%clk 0:03:00]} 18... Bd5 {[%clk 0:01:48.8]} 19. Rh4 {[%clk 0:02:59.9]}
19... Rae8+ {[%clk 0:01:43.3]} 20. Be3 {[%clk 0:03:00.7]} 20... Bxf3 {[%clk
0:01:38.3]} 21. Kd2 {[%clk 0:02:58.2]} 21... g5 {[%clk 0:01:20.1]} 22. Rh2
{[%clk 0:02:55.4]} 22... Kg7 {[%clk 0:01:20.3]} 23. Bc4 {[%clk 0:02:52.1]} 23...
h6 {[%clk 0:01:20.4]} 24. Rg1 {[%clk 0:02:51.6]} 24... Bd5 {[%clk 0:01:18.9]}
25. Bf1 {[%clk 0:02:45.6]} 25... Ng6 {[%clk 0:01:07.3]} 26. Bd3 {[%clk 0:02:43]}
26... Be4 {[%clk 0:01:06.9]} 27. Bc4 {[%clk 0:02:43.6]} 27... b5 {[%clk
0:01:02]} 28. Be2 {[%clk 0:02:36.7]} 28... a6 {[%clk 0:01:01.1]} 29. Kc3 {[%clk
0:02:37.6]} 29... Ne7 {[%clk 0:00:56.9]} 30. Kb4 {[%clk 0:02:37.9]} 30... Nd5+
{[%clk 0:00:55.8]} 31. Ka5 {[%clk 0:02:39]} 31... Bg6 {[%clk 0:00:43.4]} 32. Rg3
{[%clk 0:02:34]} 32... Rf6 {[%clk 0:00:36.2]} 33. Bd1 {[%clk 0:02:23.9]} 33...
Rfe6 {[%clk 0:00:26]} 34. Bb3 {[%clk 0:02:20.5]} 34... Re4 {[%clk 0:00:17.5]}
35. Kxa6 {[%clk 0:02:13.5]} 35... Nxe3 {[%clk 0:00:17.3]} 36. fxe3 {[%clk
0:02:09.1]} 36... Rxe3 {[%clk 0:00:17.4]} 37. Rhh3 {[%clk 0:02:09]} 37... Rxg3
{[%clk 0:00:17.5]} 38. Rxg3 {[%clk 0:02:10.2]} 38... Re2 {[%clk 0:00:14.9]} 39.
Kb6 {[%clk 0:02:06.7]} 39... Rxb2 {[%clk 0:00:15.8]} 40. Kxc6 {[%clk 0:02:08.1]}
40... h5 {[%clk 0:00:17]} 41. Bd1 {[%clk 0:02:06]} 41... Kh6 {[%clk 0:00:12.7]}
42. Re3 {[%clk 0:02:07.3]} 42... Rd2 {[%clk 0:00:12.3]} 43. Be2 {[%clk
0:02:04.9]} 43... Rxd4 {[%clk 0:00:12.8]} 44. Bxb5 {[%clk 0:02:04.1]} 44... h4
{[%clk 0:00:13.1]} 45. Re6 {[%clk 0:02:04.7]} 45... Kg7 {[%clk 0:00:11.5]} 46.
a4 {[%clk 0:02:02.2]} 46... h3 {[%clk 0:00:11.9]} 47. a5 {[%clk 0:02:01.5]}
47... h2 {[%clk 0:00:12.6]} 48. Re1 {[%clk 0:02:02.2]} 48... Rh4 {[%clk
0:00:07.5]} 49. a6 {[%clk 0:01:58.2]} 49... h1=Q+ {[%clk 0:00:08.6]} 50. Rxh1
{[%clk 0:01:58.3]} 50... Be4+ {[%clk 0:00:10.3]} 51. Kb6 {[%clk 0:01:55.5]}
51... Bxh1 {[%clk 0:00:11.9]} 52. a7 {[%clk 0:01:56.5]} 52... Rb4 {[%clk
0:00:11.4]} 53. Ka5 {[%clk 0:01:57]} 53... Rxb5+ {[%clk 0:00:11.4]} 54. Kxb5
{[%clk 0:01:57.7]} 54... Kf6 {[%clk 0:00:11.8]} 55. Kc5 {[%clk 0:01:59.6]} 55...
Ke5 {[%clk 0:00:12.3]} 56. Kc4 {[%clk 0:02:01.1]} 56... Kf4 {[%clk 0:00:11.8]}
57. Kd3 {[%clk 0:02:02.1]} 57... Bf3 {[%clk 0:00:11.4]} 58. Kd2 {[%clk
0:02:03.1]} 58... g4 {[%clk 0:00:08.1]} 59. Ke1 {[%clk 0:02:05]} 59... Ke5
{[%clk 0:00:09.5]} 60. Kf2 {[%clk 0:02:06.1]} 60... Kf4 {[%clk 0:00:10.9]} 61.
Kg1 {[%clk 0:02:07]} 61... Kg3 {[%clk 0:00:09.3]} 62. Kf1 {[%clk 0:02:07.1]}
62... Kh2 {[%clk 0:00:08.4]} 63. Kf2 {[%clk 0:02:08.4]} 63... Ba8 {[%clk
0:00:09]} 64. Ke3 {[%clk 0:02:09.6]} 64... g3 {[%clk 0:00:09.8]} 65. Kf4 {[%clk
0:02:10.6]} 65... g2 {[%clk 0:00:10.8]} 66. Ke5 {[%clk 0:02:12.5]} 66... g1=Q
{[%clk 0:00:10.7]} 67. Kd6 {[%clk 0:02:13.6]} 67... Qxa7 {[%clk 0:00:09.9]} 68.
Ke5 {[%clk 0:02:15.5]} 68... Qc7+ {[%clk 0:00:10.6]} 69. Kd4 {[%clk 0:02:16]}
69... Qd6+ {[%clk 0:00:11.9]} 70. Ke3 {[%clk 0:02:17.1]} 70... Qe5+ {[%clk
0:00:13.1]} 71. Kf2 {[%clk 0:02:18.3]} 71... Qf4+ {[%clk 0:00:14]} 72. Ke2
{[%clk 0:02:19.4]} 72... Bf3+ {[%clk 0:00:14]} 73. Kd3 {[%clk 0:02:21.3]} 73...
Qe4+ {[%clk 0:00:14.8]} 74. Kc3 {[%clk 0:02:22]} 74... Kg3 {[%clk 0:00:15.6]}
75. Kd2 {[%clk 0:02:22.9]} 75... Kf2 {[%clk 0:00:16.4]} 76. Kc3 {[%clk 0:02:24]}
76... Ke3 {[%clk 0:00:17.7]} 77. Kb3 {[%clk 0:02:24.9]} 77... Kd3 {[%clk
0:00:17.7]} 78. Kb2 {[%clk 0:02:25]} 78... Qb4+ {[%clk 0:00:18.7]} 79. Kc1
{[%clk 0:02:26.3]} 79... Qc3+ {[%clk 0:00:17.5]} 80. Kb1 {[%clk 0:02:27.3]}
80... Qe1+ {[%clk 0:00:18.2]} 81. Kb2 {[%clk 0:02:28.3]} 81... Bd5 {[%clk
0:00:17]} 82. Ka3 {[%clk 0:02:29.3]} 82... Qa5+ {[%clk 0:00:17.6]} 83. Kb2
{[%clk 0:02:30.2]} 83... Qc3+ {[%clk 0:00:18.8]} 84. Kb1 {[%clk 0:02:31.1]}
84... Qb3+ {[%clk 0:00:20]} 85. Ka1 {[%clk 0:02:31.3]} 85... Qa2# {[%clk
0:00:20.9]} 0-1

[Event "*** Titled Tuesday 3|2 Blitz"]
[Site "Chess.com"]
[Date "2016.01.05"]
[Round "9"]
[White "swayamsm"]
[Black "LyonBeast"]
[Result "1-0"]
[WhiteElo "2600"]
[BlackElo "2765"]
[TimeControl "180+2"]
[EndTime "12:55:24 PST"]
[Termination "swayamsm won by resignation"]

1. d4 {[%clk 0:03:01.9]} 1... Nf6 {[%clk 0:02:58.6]} 2. c4 {[%clk 0:03:03]} 2...
e6 {[%clk 0:02:58.4]} 3. Nc3 {[%clk 0:03:03.9]} 3... Bb4 {[%clk 0:02:53.6]} 4.
e3 {[%clk 0:03:05.3]} 4... O-O {[%clk 0:02:51]} 5. Ne2 {[%clk 0:03:06.9]} 5...
d5 {[%clk 0:02:48.3]} 6. a3 {[%clk 0:03:08.3]} 6... Be7 {[%clk 0:02:48.2]} 7.
cxd5 {[%clk 0:03:06.2]} 7... Nxd5 {[%clk 0:02:48.5]} 8. Nxd5 {[%clk 0:03:04.7]}
8... Qxd5 {[%clk 0:02:47.4]} 9. Nc3 {[%clk 0:02:59.7]} 9... Qc6 {[%clk
0:02:42.8]} 10. Bd2 {[%clk 0:02:53]} 10... Nd7 {[%clk 0:02:39.8]} 11. Rc1 {[%clk
0:02:51.7]} 11... Nf6 {[%clk 0:02:38.8]} 12. Nb5 {[%clk 0:02:36.2]} 12... Qb6
{[%clk 0:02:39.6]} 13. Nxc7 {[%clk 0:02:35.6]} 13... Rb8 {[%clk 0:02:40.8]} 14.
Nb5 {[%clk 0:02:27.6]} 14... Bd7 {[%clk 0:02:35.1]} 15. Nc3 {[%clk 0:02:11.7]}
15... Qxb2 {[%clk 0:02:34.3]} 16. a4 {[%clk 0:02:12.1]} 16... Rfc8 {[%clk
0:02:25.2]} 17. Bd3 {[%clk 0:02:10.4]} 17... Qb6 {[%clk 0:02:10.3]} 18. O-O
{[%clk 0:02:09]} 18... a6 {[%clk 0:02:11.5]} 19. Qe2 {[%clk 0:02:04.2]} 19...
Qd6 {[%clk 0:01:36.6]} 20. Rb1 {[%clk 0:02:04.5]} 20... e5 {[%clk 0:01:35.2]}
21. dxe5 {[%clk 0:01:43.6]} 21... Qxe5 {[%clk 0:01:37.1]} 22. f4 {[%clk
0:01:44.1]} 22... Qe6 {[%clk 0:01:02.9]} 23. e4 {[%clk 0:01:40.9]} 23... Bc5+
{[%clk 0:01:03.3]} 24. Kh1 {[%clk 0:01:39.7]} 24... Bd4 {[%clk 0:01:01.8]} 25.
Rfc1 {[%clk 0:01:37.5]} 25... Ng4 {[%clk 0:01:01.6]} 26. f5 {[%clk 0:01:25.4]}
26... Qf6 {[%clk 0:00:50.2]} 27. Qxg4 {[%clk 0:01:26.5]} 27... Bxc3 {[%clk
0:00:51.7]} 28. Bg5 {[%clk 0:01:20.3]} 28... Qd4 {[%clk 0:00:50.6]} 29. Qg3
{[%clk 0:01:12.2]} 29... Ba5 {[%clk 0:00:32.9]} 30. Rd1 {[%clk 0:01:08]} 30...
Bc7 {[%clk 0:00:31.8]} 31. Bf4 {[%clk 0:00:55.7]} 31... Bxf4 {[%clk 0:00:32.7]}
32. Qxf4 {[%clk 0:00:57.6]} 32... Bc6 {[%clk 0:00:31.3]} 33. Bc2 {[%clk
0:00:53.9]} 33... Qc3 {[%clk 0:00:29.9]} 34. Bb3 {[%clk 0:00:49.1]} 34... Re8
{[%clk 0:00:20]} 35. Bd5 {[%clk 0:00:45.7]} 35... Bxd5 {[%clk 0:00:19.4]} 36.
exd5 {[%clk 0:00:44.5]} 36... Rbd8 {[%clk 0:00:20.4]} 37. d6 {[%clk 0:00:45.5]}
37... Rd7 {[%clk 0:00:20]} 38. h3 {[%clk 0:00:44.8]} 38... h6 {[%clk 0:00:20.4]}
39. Rbc1 {[%clk 0:00:45.6]} 39... Qb3 {[%clk 0:00:20.4]} 40. Kh2 {[%clk
0:00:42.1]} 40... Red8 {[%clk 0:00:21.2]} 41. Rd4 {[%clk 0:00:42.3]} 41... b5
{[%clk 0:00:21.3]} 42. axb5 {[%clk 0:00:43.6]} 42... axb5 {[%clk 0:00:23.2]} 43.
Rc7 {[%clk 0:00:39.7]} 43... Qa3 {[%clk 0:00:21.6]} 44. Rxd7 {[%clk 0:00:32.2]}
44... Rxd7 {[%clk 0:00:23.5]} 45. Qe5 {[%clk 0:00:33.6]} 45... Kh7 {[%clk
0:00:24.6]} 46. f6 {[%clk 0:00:29.4]} 46... g6 {[%clk 0:00:19.2]} 47. Qe8 {[%clk
0:00:27.3]} 47... Qc5 {[%clk 0:00:17.3]} 48. Rd3 {[%clk 0:00:10.5]} 48... Qf5
{[%clk 0:00:17.7]} 49. Rf3 {[%clk 0:00:09]} 49... Qe4 {[%clk 0:00:15.9]} 50.
Qxe4 {[%clk 0:00:09.5]} 1-0

[Event "*** Titled Tuesday 3|2 Blitz"]
[Site "Chess.com"]
[Date "2016.01.05"]
[Round "9"]
[White "Anton_Demchenko"]
[Black "Frolyanov_D"]
[Result "0-1"]
[WhiteElo "2666"]
[BlackElo "2535"]
[TimeControl "180+2"]
[EndTime "12:55:33 PST"]
[Termination "Frolyanov_D won by checkmate"]

1. e4 {[%clk 0:03:01.9]} 1... e5 {[%clk 0:03:00.5]} 2. Nf3 {[%clk 0:03:02.9]}
2... Nf6 {[%clk 0:03:01.9]} 3. Nxe5 {[%clk 0:03:02.5]} 3... d6 {[%clk
0:03:03.4]} 4. Nf3 {[%clk 0:03:03.7]} 4... Nxe4 {[%clk 0:03:04.4]} 5. Bd3 {[%clk
0:03:04.1]} 5... Nf6 {[%clk 0:03:01.2]} 6. O-O {[%clk 0:03:04.8]} 6... Be7
{[%clk 0:03:02.3]} 7. c3 {[%clk 0:03:05]} 7... O-O {[%clk 0:03:03.7]} 8. Bc2
{[%clk 0:03:06.4]} 8... b6 {[%clk 0:03:05]} 9. d4 {[%clk 0:03:07.6]} 9... Bb7
{[%clk 0:03:06.5]} 10. Nbd2 {[%clk 0:03:06.8]} 10... Nbd7 {[%clk 0:03:07.5]} 11.
Re1 {[%clk 0:03:07.8]} 11... Re8 {[%clk 0:03:07.9]} 12. Nf1 {[%clk 0:03:07.6]}
12... Bf8 {[%clk 0:03:08.3]} 13. Be3 {[%clk 0:03:02.5]} 13... g6 {[%clk
0:03:07.8]} 14. h3 {[%clk 0:03:01.3]} 14... Bg7 {[%clk 0:03:08.4]} 15. Ng3
{[%clk 0:02:57.8]} 15... Nf8 {[%clk 0:02:53.6]} 16. Bb3 {[%clk 0:02:51]} 16...
Qd7 {[%clk 0:02:51.5]} 17. Ng5 {[%clk 0:02:49.5]} 17... Re7 {[%clk 0:02:28.4]}
18. Bd2 {[%clk 0:02:05.9]} 18... Rae8 {[%clk 0:02:21]} 19. Rxe7 {[%clk
0:02:06.3]} 19... Rxe7 {[%clk 0:02:22.4]} 20. a4 {[%clk 0:01:49]} 20... a5
{[%clk 0:02:20.9]} 21. Bc4 {[%clk 0:01:48.7]} 21... Bxg2 {[%clk 0:01:55.7]} 22.
Bxf7+ {[%clk 0:01:27.4]} 22... Rxf7 {[%clk 0:01:53.5]} 23. Nxf7 {[%clk
0:01:29.3]} 23... Bd5 {[%clk 0:01:46.8]} 24. Ng5 {[%clk 0:01:18.7]} 24... h6
{[%clk 0:01:44.5]} 25. c4 {[%clk 0:01:20.1]} 25... Bxc4 {[%clk 0:01:37.2]} 26.
Nf3 {[%clk 0:01:05.8]} 26... Qxh3 {[%clk 0:01:35.8]} 27. Nh2 {[%clk 0:01:05.5]}
27... Bd5 {[%clk 0:01:33.4]} 28. Qf1 {[%clk 0:01:06]} 28... Qh4 {[%clk
0:01:27.6]} 29. Be3 {[%clk 0:00:53.1]} 29... Ne6 {[%clk 0:01:20.7]} 30. Rc1
{[%clk 0:00:53.5]} 30... Ne4 {[%clk 0:01:13.6]} 31. Qg2 {[%clk 0:00:25.7]} 31...
Kh7 {[%clk 0:01:10.7]} 32. Nxe4 {[%clk 0:00:24.3]} 32... Bxe4 {[%clk 0:01:12.1]}
33. Qg4 {[%clk 0:00:23.3]} 33... Qxg4+ {[%clk 0:01:00.1]} 34. Nxg4 {[%clk
0:00:25.2]} 34... h5 {[%clk 0:00:45.1]} 35. Nh2 {[%clk 0:00:25.8]} 35... c5
{[%clk 0:00:42]} 36. dxc5 {[%clk 0:00:25.7]} 36... dxc5 {[%clk 0:00:41.6]} 37.
Nf1 {[%clk 0:00:16.5]} 37... Bxb2 {[%clk 0:00:38.2]} 38. Rd1 {[%clk 0:00:17.7]}
38... Nd4 {[%clk 0:00:38.4]} 39. Ng3 {[%clk 0:00:08.6]} 39... Bc2 {[%clk
0:00:34.5]} 40. Rf1 {[%clk 0:00:09.5]} 40... Bc3 {[%clk 0:00:21.4]} 41. Rc1
{[%clk 0:00:04.3]} 41... Bb2 {[%clk 0:00:22.3]} 42. Rf1 {[%clk 0:00:05.2]} 42...
h4 {[%clk 0:00:23.4]} 43. Nh1 {[%clk 0:00:03]} 43... Nf3+ {[%clk 0:00:22.7]} 44.
Kg2 {[%clk 0:00:03.7]} 44... Be4 {[%clk 0:00:23]} 45. Kh3 {[%clk 0:00:05.1]}
45... g5 {[%clk 0:00:22.6]} 46. Rd1 {[%clk 0:00:04.7]} 46... Bf5+ {[%clk
0:00:21.2]} 47. Kg2 {[%clk 0:00:05.5]} 47... g4 {[%clk 0:00:22.1]} 48. Rd6
{[%clk 0:00:06]} 48... Be4 {[%clk 0:00:22.7]} 49. Rxb6 {[%clk 0:00:06]} 49...
Be5 {[%clk 0:00:23.3]} 50. Bxc5 {[%clk 0:00:05.6]} 50... Nd4+ {[%clk 0:00:21.7]}
51. Kg1 {[%clk 0:00:06.5]} 51... Nf3+ {[%clk 0:00:21]} 52. Kf1 {[%clk
0:00:06.3]} 52... Bd3+ {[%clk 0:00:21]} 53. Kg2 {[%clk 0:00:07.7]} 53... h3#
{[%clk 0:00:22.1]} 0-1